bitfinex/quotes_SOLUSD_20240920
["timestamp","ask_amount","ask_price","bid_price","bid_amount"]
[1726836037520,30.419984,150.53,150.52,0.0719813]
[1726836037892,30.545474,150.53,150.52,0.0719813]
[1726836039024,30.419984,150.53,150.52,0.0719813]
[1726836039204,23.902374,150.56,150.52,0.0719813]
[1726836039522,6.6426,150.55,150.52,0.0719813]
[1726836041001,16.6006,150.6,150.52,0.0719813]
[1726836041199,6.6417,150.57,150.52,0.0719813]
[1726836041619,6.6417,150.57,150.52,6.7154813]
[1726836041820,6.6419,150.56,150.52,0.0719813]
[1726836042204,6.6414,150.57,150.52,0.0719813]
[1726836042406,6.641,150.58,150.53,6.6428]
[1726836042713,6.641,150.58,150.52,0.0719813]
[1726836042714,6.641,150.58,150.54,7.9710334]
[1726836043237,6.641,150.58,150.54,6.6427]
[1726836043399,6.641,150.58,150.52,0.0719813]
[1726836043605,6.641,150.58,150.54,6.6426]
[1726836043923,6.6406,150.59,150.55,6.6421]
[1726836044812,6.6422,150.56,150.52,0.0719813]
[1726836044999,6.6417,150.57,150.52,0.0719813]
[1726836045323,6.641,150.58,150.54,6.6427]
[1726836047609,6.641,150.58,150.53,6.643]
[1726836048214,6.6406,150.59,150.55,6.6422]
[1726836048405,6.6402,150.6,150.56,7.97000754]
[1726836048918,6.6402,150.6,150.56,6.6418]
[1726836049730,6.6402,150.6,150.55,21.7261]
[1726836050324,6.6397,150.61,150.55,15.084]
[1726836050521,6.6397,150.61,150.57,6.6411]
[1726836050720,6.6395,150.62,150.58,6.6409]
[1726836050926,6.6388,150.63,150.59,6.6405]
[1726836051609,6.8922092,150.66,150.6,1.32782289]
[1726836051931,6.6379,150.65,150.61,15.5644]
[1726836052430,6.6383,150.64,150.61,15.5644]
[1726836053025,6.6379,150.65,150.61,15.5644]
[1726836053227,0.2546092,150.66,150.62,1.32769419]
[1726836053926,0.2546092,150.66,150.61,15.5644]
[1726836054225,0.2546092,150.66,150.62,20.0]
[1726836054601,0.2546092,150.66,150.63,1.32730004]
[1726836054806,0.2546092,150.66,150.64,51.32715145]
[1726836055025,0.2546092,150.66,150.65,42.2694]
[1726836060207,0.2546092,150.66,150.65,42.39489]
[1726836060842,0.2546092,150.71,150.67,20.12549]
[1726836061916,0.2546092,150.71,150.67,20.0]
[1726836062115,0.2546092,150.71,150.66,20.0]
[1726836062643,0.2546092,150.71,150.67,1.32687917]
[1726836063132,0.2546092,150.71,150.66,20.0]
[1726836063814,0.2546092,150.71,150.66,70.0]
[1726836065137,0.2546092,150.71,150.7,70.12549]
[1726836065433,0.2546092,150.71,150.7,77.81950154]
[1726836066219,0.2546092,150.75,150.7,77.81950154]
[1726836066220,0.2546092,150.75,150.72,50.0]
[1726836066422,0.2546092,150.75,150.73,21.32625611]
[1726836067441,0.2546092,150.75,150.71,20.12549]
[1726836067618,0.2546092,150.75,150.73,20.0]
[1726836068810,0.2546092,150.75,150.71,20.0]
[1726836070051,0.2546092,150.75,150.72,50.12549]
[1726836070341,0.2546092,150.75,150.73,20.0]
[1726836073723,0.2546092,150.75,150.74,1.32631659]
[1726836074329,0.2546092,150.75,150.73,20.0]
[1726836074831,0.2546092,150.75,150.72,20.0]
[1726836075037,0.2546092,150.75,150.71,20.0]
[1726836075530,0.2546092,150.75,150.7,15.9054]
[1726836076843,0.2546092,150.75,150.71,20.0]
[1726836078639,0.2546092,150.75,150.72,50.0]
[1726836078838,0.2546092,150.75,150.73,20.0]
[1726836079538,0.2546092,150.75,150.74,1.32630896]
[1726836079850,0.2546092,150.75,150.71,20.0]
[1726836081534,0.2546092,150.75,150.72,50.12549]
[1726836081750,0.2546092,150.75,150.73,20.0]
[1726836082831,0.2546092,150.75,150.71,20.0]
[1726836083147,0.2546092,150.75,150.72,51.45189636]
[1726836083455,0.2546092,150.75,150.73,20.0]
[1726836084950,0.2546092,150.75,150.71,20.0]
[1726836085146,0.2546092,150.75,150.72,50.12549]
[1726836085351,0.2546092,150.75,150.73,21.32623455]
[1726836085557,0.2546092,150.75,150.73,20.0]
[1726836085732,0.2546092,150.75,150.74,1.32623543]
[1726836088451,0.2546092,150.75,150.74,71.45172543]
[1726836088751,0.361962,150.81,150.76,50.0]
[1726836089054,0.361962,150.81,150.77,20.0]
[1726836090547,0.361962,150.81,150.75,20.0]
[1726836094854,6.992862,150.81,150.72,50.0]
[1726836095063,7.1313,150.8,150.71,0.12549]
[1726836095353,0.361962,150.81,150.75,50.0]
[1726836096165,0.361962,150.81,150.76,20.0]
[1726836097041,0.361962,150.81,150.77,1.32600315]
[1726836097255,0.361962,150.81,150.76,20.0]
[1726836104666,15.8686,150.8,150.71,36.93199297]
[1726836104843,6.6558,150.78,150.71,6.93199297]
[1726836105039,24.276884,150.77,150.65,66.5606]
[1726836105371,16.3709,150.73,150.67,30.0]
[1726836106363,16.3709,150.73,150.65,50.0]
[1726836106864,15.907,150.77,150.68,0.12549]
[1726836107072,15.907,150.77,150.7,50.0]
[1726836107446,15.907,150.77,150.68,57.96105488]
[1726836107759,15.907,150.77,150.71,20.0]
[1726836107965,15.907,150.77,150.69,20.0]
[1726836109358,24.276884,150.76,150.68,20.0]
[1726836109686,23.776884,150.76,150.68,20.0]
[1726836110770,15.907,150.77,150.68,20.0]
[1726836111056,15.907,150.77,150.69,51.32661111]
[1726836111252,15.907,150.77,150.7,20.0]
[1726836112480,15.907,150.77,150.71,1.32660295]
[1726836112985,15.907,150.77,150.7,20.0]
[1726836113980,23.0397,150.77,150.68,20.0]
[1726836114274,23.0397,150.77,150.67,20.12549]
[1726836114482,23.0397,150.77,150.69,20.0]
[1726836114674,15.907,150.77,150.69,20.0]
[1726836116358,15.907,150.77,150.71,20.0]
[1726836116692,15.907,150.77,150.72,1.32648713]
[1726836117277,15.907,150.77,150.71,20.0]
[1726836117481,15.907,150.77,150.72,1.32647264]
[1726836117682,15.907,150.77,150.71,20.0]
[1726836118579,15.907,150.77,150.72,1.32648302]
[1726836118802,6.6558,150.78,150.73,20.12549]
[1726836119684,6.6558,150.78,150.73,20.0]
[1726836120273,6.6558,150.78,150.71,20.0]
[1726836121887,6.6558,150.78,150.74,20.0]
[1726836122297,6.6558,150.78,150.72,20.0]
[1726836122783,6.6558,150.78,150.7,20.0]
[1726836123899,6.6558,150.78,150.73,20.0]
[1726836124804,6.6558,150.78,150.71,20.0]
[1726836128701,6.6558,150.78,150.73,20.0]
[1726836128995,6.6558,150.78,150.74,1.32630831]
[1726836129496,6.6558,150.78,150.73,20.0]
[1726836130200,6.6558,150.78,150.74,20.0]
[1726836131392,16.953562,150.81,150.75,1.32621274]
[1726836131799,16.953562,150.81,150.74,20.0]
[1726836133005,16.953562,150.81,150.75,51.45165926]
[1726836133306,16.953562,150.81,150.76,20.0]
[1726836135110,0.361962,150.81,150.78,20.0]
[1726836135402,0.361962,150.81,150.79,1.32591199]
[1726836136204,0.361962,150.81,150.78,20.0]
[1726836136391,0.361962,150.81,150.79,1.32591081]
[1726836136983,0.361962,150.81,150.78,20.0]
[1726836137713,0.361962,150.81,150.79,1.32584743]
[1726836138115,0.361962,150.81,150.78,20.0]
[1726836138417,0.361962,150.81,150.8,70.12549]
[1726836141419,0.361962,150.81,150.8,93.902374]
[1726836141737,0.361962,150.81,150.8,110.037374]
[1726836142413,0.361962,150.81,150.8,86.26049]
[1726836142821,0.361962,150.81,150.8,70.12549]
[1726836143003,0.361962,150.81,150.8,0.12549]
[1726836144815,0.361962,150.81,150.8,70.12549]
[1726836145113,0.361962,150.81,150.8,70.0]
[1726836146102,0.361962,150.81,150.8,20.0]
[1726836146304,0.361962,150.81,150.79,20.12549]
[1726836147314,0.361962,150.81,150.78,50.0]
[1726836147315,0.361962,150.81,150.77,20.0]
[1726836153603,0.361962,150.81,150.78,1.32597394]
[1726836153804,0.361962,150.81,150.77,20.0]
[1726836154304,0.361962,150.81,150.78,1.32597263]
[1726836156031,0.361962,150.81,150.77,20.0]
[1726836158028,0.361962,150.81,150.78,1.32595844]
[1726836158249,0.361962,150.81,150.79,21.32595773]
[1726836158906,0.361962,150.81,150.79,20.0]
[1726836161231,0.361962,150.81,150.8,71.45117038]
[1726836161919,0.361962,150.81,150.8,83.63916793]
[1726836167535,0.361962,150.81,150.8,91.47473281]
[1726836167920,0.361962,150.81,150.8,83.63916793]
[1726836170341,0.361962,150.81,150.79,33.51367793]
[1726836170539,0.361962,150.81,150.79,20.0]
[1726836171421,0.361962,150.81,150.78,20.0]
[1726836172621,0.361962,150.81,150.78,33.51367793]
[1726836173244,0.361962,150.81,150.78,83.51367793]
[1726836174825,0.361962,150.81,150.8,20.0]
[1726836175041,0.361962,150.81,150.8,84.83947936]
[1726836175331,0.361962,150.81,150.8,92.80053424]
[1726836176066,0.361962,150.81,150.8,124.17182375]
[1726836176227,0.361962,150.81,150.8,99.06913832]
[1726836178465,0.361962,150.81,150.8,100.39463343]
[1726836180427,0.3265905,150.84,150.83,91.23357344]
[1726836181345,0.3265905,150.84,150.83,92.55885986]
[1726836181659,0.361962,150.9,150.88,20.0]
[1726836183473,0.361962,150.9,150.89,79.16059729]
[1726836183979,0.361962,150.9,150.89,77.96105488]
[1726836184456,0.361962,150.9,150.89,79.28590181]
[1726836185072,0.361962,150.9,150.89,77.96105488]
[1726836187185,0.361962,150.9,150.89,20.0]
[1726836187473,0.361962,150.9,150.89,70.0]
[1726836187677,0.361962,150.9,150.89,20.0]
[1726836188181,0.361962,150.9,150.87,50.0]
[1726836188371,6.5615,150.89,150.83,50.0]
[1726836189957,6.5615,150.89,150.84,20.0]
[1726836190573,6.5615,150.89,150.85,1.32537079]
[1726836190775,6.5615,150.89,150.86,20.0]
[1726836193093,6.5615,150.89,150.84,20.0]
[1726836194475,6.5615,150.89,150.85,1.32535638]
[1726836195370,6.5615,150.89,150.85,59.16092126]
[1726836195570,6.5615,150.89,150.86,20.0]
[1726836195778,6.5615,150.89,150.87,1.32528951]
[1726836195997,6.5615,150.89,150.87,1.32528947]
[1726836197381,6.5615,150.89,150.86,20.0]
[1726836197584,6.5615,150.89,150.87,1.32528261]
[1726836197778,6.5615,150.89,150.86,20.0]
[1726836199909,0.361962,150.9,150.87,1.32533186]
[1726836200204,0.361962,150.9,150.88,20.0]
[1726836200987,0.361962,150.9,150.89,1.32506447]
[1726836201590,0.361962,150.9,150.88,20.0]
[1726836205087,0.361962,150.9,150.89,1.32506548]
[1726836205690,0.361962,150.9,150.88,20.0]
[1726836206007,0.361962,150.9,150.89,1.32506546]
[1726836207594,0.361962,150.9,150.88,20.0]
[1726836208210,0.361962,150.9,150.86,20.0]
[1726836208410,0.361962,150.9,150.86,33.5031802]
[1726836208898,0.361962,150.9,150.87,1.3251999]
[1726836209213,0.361962,150.9,150.89,83.5031802]
[1726836209921,0.361962,150.9,150.89,70.0]
[1726836210509,0.361962,150.9,150.87,20.0]
[1726836210904,0.361962,150.9,150.88,50.0]
[1726836211106,0.361962,150.9,150.89,20.0]
[1726836212316,0.361962,150.9,150.87,20.0]
[1726836214023,0.361962,150.9,150.88,1.32509589]
[1726836215521,0.3265905,150.93,150.92,20.0]
[1726836218409,0.3265905,150.93,150.92,21.3247384]
[1726836219524,0.3265905,150.93,150.92,21.3247387]
[1726836220214,0.3265905,150.93,150.92,20.0]
[1726836220623,0.3265905,150.93,150.92,21.32467943]
[1726836221011,0.3265905,150.93,150.92,21.45016943]
[1726836221219,0.361962,150.99,150.96,20.0]
[1726836221421,0.361962,150.99,150.97,1.32440035]
[1726836222307,0.361962,150.99,150.98,20.0]
[1726836222928,0.361962,150.99,150.98,21.32433105]
[1726836224235,0.361962,150.99,150.98,20.0]
[1726836224918,0.361962,150.99,150.98,21.32427013]
[1726836225223,0.361962,150.99,150.98,20.0]
[1726836225425,0.361962,150.99,150.98,21.32424644]
[1726836226629,0.361962,150.99,150.98,20.0]
[1726836229031,0.361962,150.99,150.98,21.3241577]
[1726836229929,0.361962,150.99,150.98,33.48441398]
[1726836230227,0.361962,150.99,150.98,34.80857295]
[1726836230425,0.361962,150.99,150.98,34.93393939]
[1726836231232,0.361962,150.99,150.98,20.0]
[1726836231537,0.361962,150.99,150.98,33.48441398]
[1726836231913,0.361962,150.99,150.98,20.0]
[1726836232532,0.361962,150.99,150.98,21.44964783]
[1726836232730,0.361962,150.99,150.98,20.12549]
[1726836234825,0.361962,150.99,150.98,41.19587615]
[1726836235029,0.361962,150.99,150.98,20.0]
[1726836237235,0.361962,150.99,150.98,21.32414182]
[1726836237641,0.361962,150.99,150.98,42.39452797]
[1726836238633,0.3265905,151.02,151.01,70.12549]
[1726836238833,0.3265905,151.02,151.01,99.03144103]
[1726836240649,0.3265905,151.02,151.01,98.90595103]
[1726836242340,0.3265905,151.02,151.01,91.07038615]
[1726836242517,0.3265905,151.02,150.99,50.0]
[1726836242723,0.3265905,151.02,151.0,1.32405871]
[1726836243130,0.3265905,151.02,150.99,50.0]
[1726836243534,0.3265905,151.02,151.01,50.0]
[1726836243745,0.3265905,151.02,151.01,70.0]
[1726836245529,0.3265905,151.02,151.0,20.0]
[1726836246146,0.3265905,151.02,151.01,1.32400896]
[1726836246450,0.3265905,151.02,151.0,20.0]
[1726836246623,0.3265905,151.02,151.01,1.32400935]
[1726836247326,0.3265905,151.02,150.99,50.0]
[1726836247527,0.3265905,151.02,151.0,1.32414809]
[1726836248242,0.3265905,151.02,150.99,50.0]
[1726836248738,0.3265905,151.02,151.01,50.0]
[1726836249732,0.3265905,151.02,151.01,70.0]
[1726836249942,0.3265905,151.02,151.01,20.0]
[1726836250449,0.3265905,151.02,151.0,20.0]
[1726836250640,0.3265905,151.02,151.01,70.0]
[1726836251156,0.3265905,151.02,151.0,20.0]
[1726836251335,0.3265905,151.02,151.01,20.0]
[1726836251971,0.3265905,151.02,151.01,70.0]
[1726836252251,0.3265905,151.02,151.01,20.0]
[1726836252455,0.3265905,151.02,151.01,1.32402189]
[1726836254476,0.3265905,151.02,151.0,33.48132181]
[1726836255127,0.3265905,151.02,151.0,34.80534527]
[1726836255538,0.3265905,151.02,151.01,70.0]
[1726836255940,0.3265905,151.02,151.01,20.0]
[1726836256534,0.3265905,151.02,151.01,50.0]
[1726836256740,0.3265905,151.02,151.01,83.48132181]
[1726836258034,0.3265905,151.02,151.0,20.0]
[1726836260837,0.3265905,151.02,151.01,14.80533043]
[1726836261260,0.3265905,151.02,151.01,34.80533043]
[1726836261451,0.3265905,151.02,151.01,33.48132181]
[1726836264672,0.3265905,151.02,151.0,20.0]
[1726836264844,0.3265905,151.02,151.01,33.48132181]
[1726836265262,0.3265905,151.02,151.01,20.0]
[1726836265869,0.3265905,151.02,151.01,21.32400959]
[1726836266169,0.3265905,151.02,151.01,71.32400959]
[1726836266869,0.3265905,151.02,151.01,79.28506447]
[1726836267048,0.3265905,151.02,151.01,79.28477865]
[1726836267252,0.3265905,151.02,151.01,77.96105488]
[1726836267560,0.3265905,151.02,151.01,91.44237669]
[1726836269057,0.3265905,151.02,151.01,77.96105488]
[1726836269262,0.3265905,151.02,151.01,91.44237669]
[1726836270153,0.3265905,151.02,151.01,77.83556488]
[1726836270353,0.3265905,151.02,151.01,92.64071895]
[1726836270550,0.3265905,151.02,151.01,91.31688669]
[1726836271567,0.3265905,151.02,151.01,91.44237669]
[1726836273474,6.934462,151.08,151.04,50.0]
[1726836273475,0.361962,151.08,151.04,50.0]
[1726836273773,0.361962,151.08,151.07,20.0]
[1726836273962,0.361962,151.08,151.07,21.32357479]
[1726836275856,0.361962,151.08,151.06,20.0]
[1726836276455,0.361962,151.08,151.06,33.48132181]
[1726836276673,0.361962,151.08,151.07,1.32357728]
[1726836276879,0.361962,151.08,151.07,14.80489909]
[1726836277391,0.361962,151.08,151.07,20.0]
[1726836280559,0.361962,151.08,151.07,21.3236124]
[1726836280764,0.361962,151.08,151.07,34.80493421]
[1726836281591,0.361962,151.08,151.07,42.64049909]
[1726836283302,0.361962,151.08,151.07,41.31688669]
[1726836283581,0.361962,151.08,151.07,33.48132181]
[1726836285775,0.361962,151.08,151.07,42.64037278]
[1726836289997,0.361962,151.08,151.07,41.31688669]
[1726836290173,0.361962,151.08,151.07,20.0]
[1726836290373,0.361962,151.08,151.07,33.48132181]
[1726836291794,0.361962,151.08,151.07,20.0]
[1726836291992,0.361962,151.08,151.07,33.48132181]
[1726836292194,0.361962,151.08,151.07,41.31688669]
[1726836294494,0.361962,151.08,151.07,27.83556488]
[1726836294796,0.361962,151.08,151.07,41.31688669]
[1726836297597,0.361962,151.08,151.05,20.0]
[1726836297805,0.361962,151.08,151.05,33.48132181]
[1726836298100,0.361962,151.08,151.04,6.87652059]
[1726836298483,23.776884,151.06,151.04,6.87652059]
[1726836298681,23.776884,151.06,151.02,7.83556488]
[1726836298682,23.776884,151.06,151.02,21.31688669]
[1726836298998,23.776884,151.06,151.03,28.19618229]
[1726836300517,23.776884,151.06,151.04,20.0]
[1726836300885,23.776884,151.06,151.03,6.8792956]
[1726836302286,23.776884,151.06,151.04,20.0]
[1726836302484,23.776884,151.06,151.03,6.8792956]
[1726836302784,23.776884,151.06,151.02,13.48132181]
[1726836302983,23.776884,151.06,151.04,13.48132181]
[1726836303709,0.361962,151.08,151.06,20.0]
[1726836303905,0.361962,151.08,151.07,33.48132181]
[1726836305402,0.361962,151.08,151.07,34.80482466]
[1726836305603,0.361962,151.08,151.07,83.48132181]
[1726836307917,0.361962,151.08,151.07,70.0]
[1726836308105,0.361962,151.08,151.07,33.48132181]
[1726836308916,0.361962,151.08,151.06,20.0]
[1726836309101,0.361962,151.08,151.07,33.48132181]
[1726836309504,0.361962,151.08,151.07,34.80485782]
[1726836310092,0.361962,151.08,151.07,1.32353601]
[1726836310300,0.361962,151.08,151.06,13.48132181]
[1726836310619,0.361962,151.08,151.07,1.32354792]
[1726836311011,0.361962,151.08,151.07,59.15910231]
[1726836311213,0.361962,151.08,151.07,72.64042412]
[1726836311412,0.361962,151.08,151.07,91.31688669]
[1726836313199,0.361962,151.08,151.06,33.48132181]
[1726836313697,0.361962,151.08,151.06,20.0]
[1726836314018,0.361962,151.08,151.04,20.34786825]
[1726836314812,0.361962,151.08,151.05,13.48132181]
[1726836315014,0.361962,151.08,151.06,20.0]
[1726836315719,0.361962,151.08,151.07,1.32371197]
[1726836316221,0.361962,151.08,151.06,20.0]
[1726836316435,24.138846,151.08,151.05,20.0]
[1726836316720,24.138846,151.08,151.02,13.48132181]
[1726836316926,24.138846,151.08,151.03,13.48132181]
[1726836317222,24.138846,151.08,151.04,1.32385115]
[1726836317524,0.361962,151.08,151.05,13.48132181]
[1726836317820,0.361962,151.08,151.06,34.80503286]
[1726836318017,0.361962,151.08,151.07,13.48132181]
[1726836318240,0.361962,151.08,151.07,83.48132181]
[1726836319522,0.361962,151.08,151.07,83.60681181]
[1726836319733,0.3265905,151.11,151.1,33.48132181]
[1726836319916,0.3265905,151.11,151.1,34.80449369]
[1726836320326,0.3265905,151.11,151.1,33.48132181]
[1726836321232,0.3265905,151.11,151.1,20.0]
[1726836322135,0.3265905,151.11,151.09,20.0]
[1726836323332,0.3265905,151.11,151.09,98.87509639]
[1726836323538,0.3265905,151.11,151.1,9.15862673]
[1726836323719,0.3265905,151.11,151.1,27.96105488]
[1726836325334,0.3265905,151.11,151.1,27.83556488]
[1726836325534,0.3265905,151.11,151.1,20.0]
[1726836326336,0.3265905,151.11,151.1,27.83556488]
[1726836327333,0.3265905,151.11,151.1,29.28410966]
[1726836328738,0.3265905,151.11,151.1,27.96105488]
[1726836330129,0.361962,151.17,151.15,50.0]
[1726836330328,0.361962,151.17,151.16,20.0]
[1726836331344,0.361962,151.17,151.14,20.0]
[1726836334943,0.361962,151.17,151.12,20.0]
[1726836335127,0.361962,151.17,151.1,20.0]
[1726836335326,16.582862,151.17,151.1,20.0]
[1726836335542,23.776884,151.16,151.1,20.0]
[1726836337042,23.776884,151.14,151.07,50.0]
[1726836337430,23.776884,151.14,151.06,13.16990463]
[1726836337625,30.393184,151.14,151.06,13.16990463]
[1726836337948,30.393184,151.14,151.07,1.32350277]
[1726836338437,23.776884,151.14,151.08,20.0]
[1726836338949,23.776884,151.12,151.07,7.83556488]
[1726836339134,23.776884,151.12,151.05,56.86194943]
[1726836340246,23.776884,151.12,151.06,20.0]
[1726836340639,23.776884,151.12,151.07,1.32359092]
[1726836340849,23.776884,151.12,151.06,27.83556488]
[1726836341947,23.776884,151.12,151.06,20.0]
[1726836342257,24.276884,151.12,151.06,20.0]
[1726836342961,23.776884,151.12,151.06,20.0]
[1726836344733,23.776884,151.1,151.05,6.86194943]
[1726836344933,23.776884,151.1,151.02,8.98271736]
[1726836345156,23.776884,151.1,151.02,7.83556488]
[1726836345354,23.776884,151.08,151.02,7.83556488]
[1726836346355,23.776884,151.08,151.03,21.32393606]
[1726836346743,23.776884,151.08,151.03,27.83556488]
[1726836347048,23.776884,151.08,151.04,1.32386602]
[1726836347645,23.776884,151.08,151.03,27.83556488]
[1726836348039,23.776884,151.08,151.03,41.31198409]
[1726836348459,23.776884,151.08,151.03,33.47641921]
[1726836348860,23.776884,151.08,151.03,20.0]
[1726836349158,24.276884,151.08,151.02,20.0]
[1726836350039,23.776884,151.08,151.03,14.80034924]
[1726836350240,15.3292,151.09,151.05,20.0]
[1726836350758,15.3292,151.09,151.04,20.0]
[1726836351770,15.3292,151.09,151.03,20.0]
[1726836351771,23.776884,151.08,151.03,20.0]
[1726836353046,6.1104,151.06,151.01,6.8662578]
[1726836353246,23.776884,151.05,151.01,6.8662578]
[1726836353937,23.776884,151.05,151.0,0.2546092]
[1726836354263,23.776884,151.05,151.0,7.12396]
[1726836354640,23.776884,151.05,151.01,20.0]
[1726836356749,6.1104,151.06,151.01,20.0]
[1726836357758,23.776884,151.05,151.01,20.0]
[1726836358357,23.776884,151.05,151.02,1.32422197]
[1726836358958,23.776884,151.05,151.01,20.0]
[1726836361067,23.776884,151.05,151.02,1.32413577]
[1726836362059,23.776884,151.05,151.01,20.0]
[1726836365376,24.276884,151.05,151.01,20.0]
[1726836365575,30.897284,151.05,151.01,20.0]
[1726836365866,24.276884,151.05,151.01,20.0]
[1726836367860,23.776884,151.05,151.01,20.0]
[1726836369070,6.1104,151.06,151.02,1.32431464]
[1726836370171,15.3292,151.09,151.02,1.32431464]
[1726836370363,15.3292,151.09,151.01,20.0]
[1726836370561,0.5,151.08,151.01,20.0]
[1726836370762,15.3292,151.09,151.02,1.32402526]
[1726836370956,15.3292,151.09,151.01,70.0]
[1726836371369,23.776884,151.08,151.01,70.0]
[1726836373482,23.776884,151.08,151.02,1.32394592]
[1726836374967,15.5215,151.13,151.04,20.0]
[1726836375179,15.5215,151.13,151.06,20.0]
[1726836375379,15.5215,151.13,151.07,1.32355412]
[1726836376076,15.5215,151.13,151.07,13.46958948]
[1726836376267,15.5215,151.13,151.08,20.0]
[1726836376864,22.1384,151.13,151.08,20.0]
[1726836377191,23.776884,151.12,151.04,33.46958948]
[1726836377564,23.776884,151.12,151.07,20.0]
[1726836378272,15.5215,151.13,151.08,1.32353242]
[1726836378469,6.2824,151.14,151.09,20.0]
[1726836378690,6.2824,151.14,151.09,70.0]
[1726836378989,16.360062,151.17,151.09,20.0]
[1726836378990,7.1156,151.16,151.09,20.0]
[1726836379878,23.776884,151.15,151.09,20.0]
[1726836382485,6.6156,151.16,151.09,20.0]
[1726836382486,23.776884,151.14,151.09,20.0]
[1726836382697,30.392384,151.16,151.09,20.0]
[1726836382867,0.361962,151.17,151.11,13.46958948]
[1726836383075,0.361962,151.17,151.12,20.0]
[1726836384495,24.276884,151.16,151.1,20.0]
[1726836385271,30.892484,151.16,151.09,20.0]
[1726836385469,24.276884,151.15,151.09,20.0]
[1726836386678,23.776884,151.15,151.09,20.0]
[1726836386879,23.776884,151.16,151.09,20.0]
[1726836387786,24.138846,151.17,151.11,20.0]
[1726836388098,0.361962,151.17,151.13,20.0]
[1726836388671,0.361962,151.17,151.11,20.0]
[1726836388882,0.5,151.16,151.11,20.0]
[1726836389092,0.5,151.16,151.09,20.0]
[1726836389482,24.276884,151.16,151.09,20.0]
[1726836389874,0.5,151.15,151.09,20.0]
[1726836390197,24.276884,151.15,151.09,20.0]
[1726836390576,23.776884,151.12,151.05,20.0]
[1726836390779,16.3091,151.16,151.07,20.0]
[1726836390992,23.776884,151.15,151.07,20.0]
[1726836391794,0.5,151.14,151.07,20.0]
[1726836392174,0.5,151.14,151.06,13.46958948]
[1726836392472,23.776884,151.11,151.04,22.87196155]
[1726836392671,0.5,151.1,151.04,22.87196155]
[1726836392892,0.5,151.1,151.04,16.0034]
[1726836393195,0.5,151.1,151.03,1.14722816]
[1726836393196,30.394584,151.11,151.03,1.14722816]
[1726836393880,30.394584,151.11,151.04,1.32378825]
[1726836393881,23.776884,151.11,151.04,1.32378825]
[1726836394789,23.776884,151.11,151.04,42.62894261]
[1726836395199,23.776884,151.11,151.06,20.0]
[1726836395497,22.7936,151.16,151.08,13.46958948]
[1726836395679,29.4091,151.16,151.09,21.32344384]
[1726836396180,29.4091,151.16,151.09,1.32344384]
[1726836396903,29.4091,151.16,151.08,20.0]
[1726836397074,0.5,151.15,151.08,20.0]
[1726836398186,6.6167,151.14,151.06,33.46958948]
[1726836398497,30.394084,151.13,151.06,20.0]
[1726836398702,23.776884,151.13,151.08,20.0]
[1726836398997,23.776884,151.14,151.08,20.0]
[1726836400385,23.776884,151.15,151.09,64.79302951]
[1726836400580,23.776884,151.15,151.1,20.0]
[1726836401191,24.276884,151.15,151.08,33.46958948]
[1726836401501,23.776884,151.15,151.08,33.46958948]
[1726836404386,24.276884,151.15,151.08,33.46958948]
[1726836404899,23.776884,151.15,151.08,33.46958948]
[1726836405207,23.776884,151.15,151.08,20.0]
[1726836405378,24.276884,151.15,151.08,20.0]
[1726836406478,23.776884,151.15,151.08,20.0]
[1726836409389,24.276884,151.15,151.08,20.0]
[1726836410504,23.776884,151.15,151.08,20.0]
[1726836410806,0.5,151.14,151.08,20.0]
[1726836413715,23.776884,151.13,151.06,20.0]
[1726836414000,0.5,151.12,151.06,20.0]